bitfinex/quotes_SOLUSD_20220218
["timestamp","ask_amount","ask_price","bid_price","bid_amount"]
[1645154726101,4.4,94.362,94.255,106.3]
[1645154726300,4.4,94.362,94.254,7.93528653]
[1645154726301,4.4,94.362,94.28,15.9078]
[1645154726500,41.8222989,94.361,94.282,106.3]
[1645154726701,40.8222989,94.361,94.282,106.3]
[1645154727902,40.8222989,94.361,94.283,5.301]
[1645154728303,15.9082,94.36,94.29,15.908]
[1645154728506,15.9082,94.36,94.291,5.3]
[1645154728705,15.9082,94.36,94.284,5.301]
[1645154728906,15.9082,94.36,94.283,5.301]
[1645154729311,15.9082,94.36,94.3,15.9071]
[1645154739844,15.9082,94.36,94.301,5.3]
[1645154740039,40.8222989,94.361,94.31,15.905]
[1645154740538,40.8222989,94.361,94.311,5.3]
[1645154740939,113.9,94.363,94.311,5.3]
[1645154741140,113.9,94.363,94.32,15.9047]
[1645154745648,15.9036,94.38,94.32,15.9047]
[1645154745848,15.9036,94.38,94.321,5.299]
[1645154746047,15.9036,94.38,94.33,15.9024]
[1645154746553,15.9036,94.38,94.331,5.299]
[1645154754058,122.2036,94.38,94.331,5.299]
[1645154754302,122.2036,94.38,94.306,5.299]
[1645154754303,10.88351109,94.379,94.306,5.299]
[1645154754459,15.9083,94.36,94.291,5.299]
[1645154754757,49.85082117,94.359,94.291,5.299]
[1645154754955,49.85082117,94.359,94.264,5.3]
[1645154755157,24.514,94.358,94.29,15.9088]
[1645154755359,24.514,94.358,94.291,5.3]
[1645154756357,15.9088,94.35,94.291,5.3]
[1645154757258,15.9088,94.35,94.292,22.7667]
[1645154757458,15.9088,94.35,94.293,5.301]
[1645154757662,15.9088,94.35,94.292,5.301]
[1645154757858,15.9088,94.35,94.291,5.301]
[1645154761365,15.9088,94.35,94.3,15.9084]
[1645154762992,15.9088,94.35,94.293,5.3]
[1645154783913,6.02847336,94.349,94.293,5.3]
[1645154784115,15.9099,94.34,94.293,5.3]
[1645154784314,48.72803542,94.339,94.293,5.3]
[1645154785117,15.91,94.33,94.293,5.3]
[1645154787820,15.91,94.33,94.271,5.301]
[1645154788046,15.91,94.33,94.266,23.6183]
[1645154788047,24.7963,94.329,94.266,23.6183]
[1645154788220,53.34717535,94.319,94.266,23.6183]
[1645154789427,15.9159,94.31,94.266,23.6183]
[1645154794339,15.9159,94.31,94.251,5.301]
[1645154794538,113.79028653,94.309,94.245,23.3923]
[1645154794737,113.79028653,94.309,94.231,28.9952]
[1645154794738,15.9209,94.29,94.231,23.6922]
[1645154794944,56.91437545,94.289,94.231,23.6922]
[1645154796357,15.9228,94.28,94.231,23.6922]
[1645154806801,15.9228,94.28,94.211,5.304]
[1645154806972,15.9228,94.28,94.212,24.3559]
[1645154807174,15.9228,94.28,94.213,5.305]
[1645154809581,106.3,94.279,94.213,5.305]
[1645154809781,15.9246,94.26,94.213,5.305]
[1645154809984,42.84288169,94.259,94.213,5.305]
[1645154811382,15.925,94.25,94.213,5.305]
[1645154816522,15.9226,94.26,94.213,5.305]
[1645154816921,57.9735,94.29,94.213,111.605]
[1645154817124,53.0735,94.29,94.213,111.605]
[1645154817721,53.0735,94.29,94.213,5.305]
[1645154818326,15.9191,94.28,94.22,15.9217]
[1645154818521,15.9191,94.28,94.221,5.304]
[1645154819023,15.9191,94.28,94.213,5.305]
[1645154820325,15.9191,94.28,94.23,15.9194]
[1645154820526,15.9191,94.28,94.231,27.8063]
[1645154821426,15.9191,94.28,94.232,106.3]
[1645154821628,15.9169,94.29,94.24,15.9188]
[1645154822028,15.9169,94.29,94.241,5.304]
[1645154822226,15.9169,94.29,94.231,22.5023]
[1645154822227,15.9169,94.29,94.232,5.304]
[1645154823427,15.9169,94.29,94.25,15.9169]
[1645154825527,54.31124111,94.289,94.25,15.9169]
[1645154825728,15.9183,94.28,94.24,15.9183]
[1645154826936,15.9183,94.28,94.241,5.304]
[1645154829138,15.9183,94.28,94.25,15.9174]
[1645154830440,15.917,94.29,94.25,15.9174]
[1645154830638,1.5025603,94.304,94.26,15.9155]
[1645154830838,1.5025603,94.308,94.26,15.9155]
[1645154831045,1.5025603,94.307,94.261,24.5666]
[1645154831541,15.9155,94.3,94.261,24.5666]
[1645154844388,15.9155,94.3,94.27,15.9144]
[1645154846291,15.9155,94.3,94.261,24.5666]
[1645154847393,15.9155,94.3,94.27,15.9146]
[1645154847591,15.9155,94.3,94.261,24.5666]
[1645154848594,15.9155,94.3,94.241,5.303]
[1645154848797,1.5025603,94.294,94.235,5.303]
[1645154848994,15.9222,94.28,94.235,5.303]
[1645154849198,15.9222,94.28,94.206,5.304]
[1645154849394,17.4247603,94.28,94.206,30.0467]
[1645154849596,17.4247603,94.28,94.22,15.9219]
[1645154850399,15.9222,94.28,94.221,22.799]
[1645154850595,15.9222,94.28,94.221,28.104]
[1645154856430,15.9222,94.28,94.23,15.9206]
[1645154856625,15.9222,94.28,94.231,5.304]
[1645154856828,15.9222,94.28,94.222,5.305]
[1645154857625,15.9222,94.28,94.24,15.9177]
[1645154857827,15.9222,94.28,94.241,5.304]
[1645154862332,15.9222,94.28,94.25,15.9174]
[1645154862533,15.917,94.29,94.25,15.9174]
[1645154862832,15.917,94.29,94.251,5.304]
[1645154863034,15.917,94.29,94.233,106.3]
[1645154863232,15.917,94.29,94.234,5.304]
[1645154863433,15.917,94.29,94.26,15.916]
[1645154868646,15.9153,94.3,94.26,15.916]
[1645154868845,15.9153,94.3,94.261,24.3434]
[1645154869241,15.9153,94.3,94.27,15.9145]
[1645154874249,15.9153,94.3,94.261,24.3434]
[1645154874444,44.04052801,94.299,94.261,24.3434]
[1645154877748,15.9162,94.29,94.241,5.303]
[1645154877949,15.9162,94.29,94.242,23.0123]
[1645154878351,15.9162,94.29,94.243,5.304]
[1645154881052,15.9162,94.29,94.242,23.0123]
[1645154888172,15.9162,94.29,94.25,15.9176]
[1645154888776,15.9162,94.29,94.25,15.88882639]
[1645154891680,15.9162,94.29,94.242,23.0123]
[1645154896199,15.9162,94.29,94.243,5.304]
[1645154897300,1.5025603,94.295,94.251,106.3]
[1645154897500,57.9461,94.32,94.251,106.3]
[1645154897501,1.5025603,94.304,94.252,5.303]
[1645154897700,1.5025603,94.304,94.254,106.3]
[1645154897900,1.5025603,94.314,94.254,106.3]
[1645154898100,1.5025603,94.317,94.255,5.301]
[1645154898403,46.41588252,94.315,94.26,15.9127]
[1645154900907,1.5025603,94.314,94.26,15.9127]
[1645154901104,1.5025603,94.312,94.26,15.9127]
[1645154901306,1.5025603,94.309,94.26,15.9127]
[1645154901510,1.5025603,94.305,94.255,5.301]
[1645154901907,1.5025603,94.303,94.255,5.301]
[1645154902107,1.5025603,94.302,94.255,5.301]
[1645154903111,1.5025603,94.301,94.255,5.301]
[1645154903322,15.918,94.3,94.253,24.9769]
[1645154907211,15.918,94.3,94.26,15.9162]
[1645154907419,1.5025603,94.307,94.26,15.9162]
[1645154907611,15.9138,94.31,94.261,5.303]
[1645154908014,15.9138,94.31,94.254,5.303]
[1645154908213,15.9138,94.31,94.254,111.603]
[1645154909512,15.9138,94.31,94.27,15.9134]
[1645154909712,15.9138,94.31,94.271,5.301]
[1645154910111,15.9138,94.31,94.255,5.301]
[1645154910913,4.781,94.312,94.28,15.9125]
[1645154911113,1.5025603,94.326,94.28,15.9125]
[1645154911319,1.5025603,94.33,94.281,29.9382]
[1645154911517,1.5025603,94.331,94.281,24.6372]
[1645154911718,1.5025603,94.331,94.282,5.301]
[1645154911916,1.5025603,94.332,94.282,5.301]
[1645154912317,15.9108,94.33,94.29,15.9108]
[1645154913217,1.5025603,94.335,94.29,15.9108]
[1645154913419,1.5025603,94.336,94.29,15.9108]
[1645154913821,1.5025603,94.334,94.29,15.9108]
[1645154914121,4.856,94.349,94.281,24.6372]
[1645154914122,1.5025603,94.346,94.3,15.9056]
[1645154914319,4.856,94.349,94.3,15.9056]
[1645154914520,4.856,94.349,94.301,5.3]
[1645154914927,44.75013087,94.348,94.294,5.3]
[1645154915120,44.75013087,94.348,94.31,15.905]
[1645154915320,44.75013087,94.348,94.311,5.3]
[1645154916622,44.75013087,94.348,94.31,15.905]
[1645154917024,44.75013087,94.348,94.293,5.3]
[1645154917221,1.5025603,94.345,94.293,5.3]
[1645154917422,1.5025603,94.341,94.292,23.3438]
[1645154917622,1.5025603,94.34,94.292,23.3438]
[1645154917820,1.5025603,94.34,94.261,5.301]
[1645154918021,1.5025603,94.335,94.261,29.0215]
[1645154918223,15.9113,94.33,94.28,15.9113]
[1645154918522,15.9113,94.33,94.281,5.301]
[1645154919544,15.9113,94.33,94.28,15.9113]
[1645154919743,15.9113,94.33,94.281,5.301]
[1645154924949,1.5025603,94.337,94.281,5.301]
[1645154924950,1.5025603,94.337,94.29,15.9104]
[1645154925149,1.5025603,94.345,94.29,15.9104]
[1645154925350,46.25269117,94.348,94.291,5.301]
[1645154925551,44.75013087,94.348,94.274,5.301]
[1645154926351,44.75013087,94.348,94.3,15.907]
[1645154926749,44.75013087,94.348,94.301,5.3]
[1645154935866,44.75013087,94.348,94.3,15.907]
[1645154936465,46.25269117,94.348,94.3,15.907]
[1645154937468,1.5025603,94.345,94.3,15.907]
[1645154937967,1.5025603,94.346,94.3,15.907]
[1645154938369,1.5025603,94.345,94.3,15.907]
[1645154939469,1.5025603,94.344,94.3,15.907]
[1645154940269,1.5025603,94.343,94.3,15.907]
[1645154942071,15.9088,94.34,94.29,15.9103]
[1645154942519,1.5025603,94.339,94.29,15.9103]
[1645154943271,1.5025603,94.338,94.29,15.9103]
[1645154943472,15.9105,94.33,94.291,5.301]
[1645154948978,1.5025603,94.339,94.3,15.909]
[1645154949175,17.4115603,94.34,94.3,15.909]
[1645154949383,1.5025603,94.339,94.3,15.909]
[1645154950282,1.5025603,94.338,94.3,15.909]
[1645154950478,1.5025603,94.337,94.3,15.909]
[1645154951680,1.5025603,94.338,94.3,15.909]
[1645154952282,1.5025603,94.337,94.3,15.909]
[1645154953502,1.5025603,94.336,94.3,15.909]
[1645154954405,1.5025603,94.334,94.3,15.909]
[1645154954604,1.5025603,94.336,94.3,15.909]
[1645154955906,1.5025603,94.335,94.3,15.909]
[1645154956109,1.5025603,94.34,94.3,15.909]
[1645154956308,1.5025603,94.341,94.3,15.909]
[1645154956506,46.25269117,94.348,94.301,23.082]
[1645154956707,44.75013087,94.348,94.31,15.9055]
[1645154957712,1.5025603,94.354,94.31,15.9055]
[1645154958111,1.5025603,94.355,94.31,15.9055]
[1645154958311,1.5025603,94.353,94.31,15.9055]
[1645154958514,1.5025603,94.353,94.311,5.299]
[1645154958717,51.78430833,94.352,94.32,15.9046]
[1645154963515,1.5025603,94.357,94.32,15.9046]
[1645154964116,1.5025603,94.356,94.302,5.3]
[1645154964316,15.9069,94.35,94.31,15.9069]
[1645154964617,44.75628046,94.349,94.311,5.3]
[1645154967120,15.9085,94.34,94.311,5.3]
[1645154967319,15.9085,94.34,94.302,5.3]
[1645154967821,46.25884076,94.349,94.302,5.3]
[1645154968424,44.75628046,94.349,94.302,5.3]
[1645154969324,44.75628046,94.349,94.31,15.9077]
[1645154970925,46.25884076,94.349,94.31,15.9077]
[1645154975729,15.9086,94.34,94.302,5.3]
[1645154975930,15.9086,94.34,94.301,23.082]
[1645154978435,17.4111603,94.34,94.301,23.082]
[1645154979654,15.9086,94.34,94.301,23.082]
[1645154981065,17.4111603,94.34,94.301,23.082]
[1645154981261,15.9086,94.34,94.301,23.082]
[1645154986867,17.4111603,94.34,94.301,23.082]
[1645154987267,1.5025603,94.339,94.301,23.082]
[1645154988671,15.9086,94.34,94.301,23.082]
[1645154992171,1.5025603,94.347,94.31,15.9078]
[1645154992374,1.5025603,94.354,94.311,111.6]
[1645154992568,1.5025603,94.361,94.313,106.3]
[1645154992770,1.5025603,94.367,94.314,5.298]
[1645154992971,53.6869905,94.366,94.314,5.298]
[1645154993169,1.5025603,94.369,94.321,106.3]
[1645154993569,1.5025603,94.37,94.321,106.3]
[1645154993983,1.5025603,94.369,94.321,106.3]
[1645154994182,1.5025603,94.371,94.321,106.3]
[1645154994371,55.06418302,94.368,94.33,15.9016]
[1645154998583,55.06418302,94.368,94.32,15.9052]
[1645154998783,1.5025603,94.366,94.313,5.299]
[1645154999032,1.5025603,94.362,94.313,5.299]
[1645154999188,1.5025603,94.361,94.313,5.299]
[1645154999583,15.9052,94.36,94.313,5.299]
[1645154999784,17.4077603,94.36,94.313,5.299]
[1645155000184,15.9052,94.36,94.313,5.299]
[1645155000889,17.4077603,94.36,94.313,5.299]
[1645155001083,15.9052,94.36,94.313,5.299]
[1645155002087,15.4052,94.36,94.313,5.299]
[1645155002285,15.4052,94.36,94.32,15.9058]
[1645155002485,1.5025603,94.364,94.32,15.9058]
[1645155002689,1.5025603,94.37,94.32,15.9058]
[1645155002904,1.5025603,94.373,94.32,15.9058]
[1645155003385,1.5025603,94.371,94.32,15.9058]
[1645155003687,15.9029,94.37,94.321,5.299]
[1645155003888,15.9029,94.37,94.33,15.9041]
[1645155009748,1.5025603,94.369,94.33,15.9041]
[1645155009910,15.9047,94.36,94.33,15.9041]
[1645155012301,17.4062603,94.37,94.33,15.9041]
[1645155012505,15.9037,94.37,94.33,15.9041]
[1645155016321,17.4062603,94.37,94.33,15.9041]
[1645155016531,15.9037,94.37,94.33,15.9041]
[1645155016721,1.5025603,94.37,94.33,15.9041]
[1645155016920,51.99166575,94.372,94.33,15.9041]
[1645155018425,53.49422605,94.372,94.33,15.9041]
[1645155018628,53.49422605,94.372,94.331,5.299]
[1645155018832,53.49422605,94.372,94.34,15.9022]
[1645155019223,51.99166575,94.372,94.34,15.9022]
[1645155019459,1.5025603,94.375,94.34,15.9022]
[1645155019635,1.5025603,94.381,94.341,5.298]
[1645155019824,15.9003,94.39,94.342,23.405]
[1645155019825,1.5025603,94.383,94.342,23.405]
[1645155020027,1.5025603,94.382,94.35,15.9003]
[1645155020424,1.5025603,94.38,94.35,15.9003]
[1645155020827,40.6326881,94.381,94.35,15.9003]
[1645155021026,1.5025603,94.379,94.35,15.9003]
[1645155021654,1.5025603,94.378,94.342,23.405]
[1645155021935,1.5025603,94.376,94.342,23.405]
[1645155022132,1.5025603,94.374,94.342,23.405]
[1645155022330,1.5025603,94.374,94.323,5.298]
[1645155022331,15.9029,94.37,94.323,5.298]
[1645155022532,1.5025603,94.369,94.324,23.4235]
[1645155022745,1.5025603,94.369,94.325,5.299]
[1645155022931,1.5025603,94.369,94.33,15.9036]
[1645155023941,1.5025603,94.368,94.33,15.9036]
[1645155024338,15.905,94.36,94.33,15.9036]
[1645155029048,1.5025603,94.367,94.33,15.9036]
[1645155030344,15.9034,94.37,94.33,15.9036]
[1645155030345,1.5025603,94.369,94.33,15.9036]
[1645155030543,17.4059603,94.37,94.33,15.9036]
[1645155030952,15.9034,94.37,94.33,15.9036]
[1645155031196,17.4059603,94.37,94.33,15.9036]
[1645155031341,1.5025603,94.373,94.33,15.9036]
[1645155031742,1.5025603,94.378,94.33,15.9036]
[1645155031941,1.5025603,94.375,94.33,15.9036]
[1645155032545,46.50691026,94.376,94.33,15.9036]
[1645155033446,1.5025603,94.377,94.33,15.9036]
[1645155033745,1.5025603,94.378,94.34,15.8999]
[1645155033943,1.5025603,94.378,94.341,111.598]
[1645155034151,1.5025603,94.378,94.341,106.3]
[1645155034355,1.5025603,94.379,94.342,5.298]
[1645155034549,1.5025603,94.38,94.344,106.3]
[1645155034849,1.5025603,94.38,94.343,24.7128]
[1645155035046,1.5025603,94.38,94.344,5.298]
[1645155035471,1.5025603,94.38,94.35,15.8985]
[1645155036048,1.5025603,94.381,94.35,15.8985]
[1645155036442,1.5025603,94.382,94.35,15.8985]
[1645155036844,1.5025603,94.383,94.35,15.8985]
[1645155037044,1.5025603,94.382,94.35,15.8985]
[1645155037246,1.5025603,94.383,94.35,15.8985]
[1645155037752,1.5025603,94.384,94.35,15.8985]
[1645155039148,1.5025603,94.387,94.35,15.8985]
[1645155041384,1.5025603,94.39,94.35,15.8985]
[1645155042498,1.5025603,94.389,94.35,15.8985]
[1645155042689,17.4020603,94.39,94.35,15.8985]
[1645155044086,1.5025603,94.387,94.35,15.8985]
[1645155044288,1.5025603,94.392,94.351,5.298]
[1645155044492,1.5025603,94.392,94.36,15.898]
[1645155046089,1.5025603,94.393,94.36,15.898]
[1645155047598,1.5025603,94.394,94.36,15.898]
[1645155049925,50.85833233,94.395,94.36,15.898]
[1645155050698,49.35577203,94.395,94.36,15.898]
[1645155050901,1.5025603,94.396,94.36,15.898]
[1645155051295,1.5025603,94.396,94.361,22.5088]
[1645155051496,1.5025603,94.396,94.37,15.8975]
[1645155051896,43.64176942,94.395,94.37,15.8975]
[1645155053299,43.64176942,94.395,94.361,22.5088]
[1645155056909,45.14432972,94.395,94.361,22.5088]
[1645155057605,1.5025603,94.394,94.361,22.5088]
[1645155057805,45.14432972,94.395,94.361,22.5088]
[1645155058128,43.64176942,94.395,94.361,22.5088]
[1645155058337,45.14432972,94.395,94.361,22.5088]
[1645155058834,1.5025603,94.394,94.361,22.5088]
[1645155059734,1.5025603,94.392,94.361,22.5088]
[1645155060736,1.5025603,94.392,94.37,15.8974]
[1645155060937,1.5025603,94.4,94.37,15.8974]
[1645155061137,1.5025603,94.406,94.371,5.297]
[1645155061341,1.5025603,94.406,94.372,22.8859]
[1645155061535,1.5025603,94.407,94.372,22.8859]
[1645155061736,1.5025603,94.406,94.38,15.8957]
[1645155061939,1.5025603,94.409,94.38,15.8957]
[1645155062143,1.5025603,94.414,94.381,5.296]
[1645155062536,1.5025603,94.418,94.373,111.596]
[1645155062746,0.53212824,94.42,94.391,106.3]
[1645155062943,0.53212824,94.42,94.392,5.296]
[1645155063137,0.53212824,94.42,94.393,106.3]
[1645155063637,0.53212824,94.42,94.392,24.763]
[1645155064438,0.53212824,94.42,94.4,15.8896]
[1645155073950,0.53212824,94.42,94.401,5.296]
[1645155074153,0.53212824,94.42,94.41,15.8904]
[1645155074364,0.53212824,94.42,94.411,1.61551955]
[1645155081163,1.5025603,94.455,94.42,15.8868]
[1645155081363,1.5025603,94.455,94.421,22.5664]
[1645155081687,51.19301495,94.457,94.421,22.5664]
[1645155082377,51.19301495,94.457,94.43,15.8867]
[1645155086986,51.19301495,94.457,94.4,52.9603]
[1645155087235,23.9815,94.456,94.401,24.5316]
[1645155087798,1.5025603,94.455,94.401,24.5316]
[1645155088386,15.8901,94.45,94.41,15.8901]
[1645155089693,1.5025603,94.449,94.41,15.8901]
[1645155090485,1.5025603,94.448,94.41,15.8901]
[1645155091524,1.5025603,94.446,94.41,15.8901]
[1645155092597,1.5025603,94.445,94.41,15.8901]
[1645155093005,1.5025603,94.444,94.41,15.8901]
[1645155095495,1.5025603,94.443,94.41,15.8901]
[1645155096823,1.5025603,94.442,94.41,15.8901]
[1645155097199,1.5025603,94.442,94.37,52.9713]
[1645155097200,15.8914,94.44,94.37,52.9713]
[1645155097394,23.8316,94.439,94.371,24.2909]
[1645155097598,1.5025603,94.437,94.371,24.2909]
[1645155098196,1.5025603,94.436,94.371,24.2909]
[1645155098497,17.3965603,94.43,94.39,15.8925]
[1645155099050,17.3965603,94.43,94.371,24.2909]
[1645155099397,17.3965603,94.43,94.372,106.3]
[1645155099596,1.5025603,94.429,94.372,106.3]
[1645155099800,54.98754801,94.428,94.38,15.894]
[1645155103505,1.5025603,94.429,94.381,106.3]
[1645155103704,1.5025603,94.436,94.381,106.3]
[1645155103904,1.5025603,94.436,94.39,15.891]
[1645155104107,1.5025603,94.437,94.39,15.891]
[1645155104354,1.5025603,94.434,94.39,15.891]
[1645155104706,1.5025603,94.433,94.39,15.891]
[1645155105304,1.5025603,94.434,94.39,15.891]
[1645155107111,39.67065268,94.436,94.39,15.891]
[1645155107308,1.5025603,94.437,94.39,15.891]
[1645155107807,1.5025603,94.439,94.39,15.891]
[1645155108208,1.5025603,94.437,94.39,15.891]
[1645155108808,1.5025603,94.436,94.39,15.891]
[1645155109010,1.5025603,94.437,94.39,15.891]
[1645155109406,1.5025603,94.436,94.39,15.911]
[1645155110006,1.5025603,94.437,94.39,15.911]
[1645155110406,1.5025603,94.436,94.39,15.911]
[1645155111119,1.5025603,94.436,94.391,106.3]
[1645155111307,1.5025603,94.436,94.39,15.911]
[1645155112108,1.5025603,94.437,94.39,15.911]
[1645155113709,1.5025603,94.436,94.39,15.911]
[1645155113917,1.5025603,94.437,94.39,15.911]
[1645155114412,1.5025603,94.436,94.39,15.911]
[1645155115611,1.5025603,94.435,94.39,15.911]
[1645155116012,1.5025603,94.435,94.4,15.889]
[1645155116220,1.5025603,94.436,94.401,22.9949]
[1645155117024,1.5025603,94.435,94.401,22.9949]
[1645155117219,1.5025603,94.435,94.41,15.8883]
[1645155117413,1.5025603,94.438,94.41,15.8883]
[1645155117815,1.5025603,94.437,94.41,15.8883]
[1645155118026,1.5025603,94.437,94.401,22.9949]
[1645155118614,1.5025603,94.435,94.401,22.9949]
[1645155119215,1.5025603,94.436,94.401,22.9949]
[1645155119426,1.5025603,94.435,94.401,22.9949]
[1645155119618,15.8917,94.44,94.401,23.0149]
[1645155119619,1.5025603,94.436,94.401,23.0149]
[1645155120018,1.5025603,94.435,94.401,23.0149]
[1645155120428,1.5025603,94.436,94.401,23.0149]
[1645155120621,1.5025603,94.435,94.401,23.0149]
[1645155121719,1.5025603,94.434,94.401,23.0149]
[1645155124767,1.5025603,94.433,94.401,22.9949]
[1645155126350,1.5025603,94.432,94.401,22.9949]
[1645155126544,1.5025603,94.431,94.401,22.9949]
[1645155126744,1.5025603,94.432,94.41,15.8901]
[1645155127245,1.5025603,94.437,94.41,15.8901]
[1645155128047,1.5025603,94.438,94.41,15.8901]
[1645155129851,1.5025603,94.437,94.41,15.8901]
[1645155130052,1.5025603,94.438,94.41,15.8901]
[1645155130252,1.5025603,94.444,94.41,15.8901]
[1645155130855,1.5025603,94.445,94.41,15.8901]
[1645155131053,1.5025603,94.446,94.41,15.8901]
[1645155131462,1.5025603,94.445,94.41,15.8901]
[1645155132054,1.5025603,94.446,94.41,15.8901]
[1645155132753,1.5025603,94.445,94.41,15.8901]
[1645155133158,1.5025603,94.446,94.41,15.8901]
[1645155133357,1.5025603,94.446,94.411,106.3]
[1645155133858,1.5025603,94.446,94.42,15.8867]
[1645155134864,1.5025603,94.447,94.42,15.8867]
[1645155137660,1.5025603,94.448,94.42,15.8867]
[1645155138670,1.5025603,94.447,94.42,15.8867]
[1645155139072,1.5025603,94.448,94.42,15.8867]
[1645155140065,1.5025603,94.448,94.42,15.9067]
[1645155144490,1.5025603,94.448,94.43,15.8868]
[1645155145091,1.5025603,94.448,94.43,15.9068]
[1645155145991,1.5025603,94.449,94.43,15.9068]
[1645155146389,1.5025603,94.448,94.43,15.9068]
[1645155147719,1.946259,94.453,94.43,15.9068]
[1645155147902,0.4436987,94.453,94.43,15.9068]
[1645155148700,1.946259,94.453,94.43,15.9068]
[1645155149492,1.5025603,94.452,94.43,15.9068]
[1645155153126,1.5025603,94.451,94.43,15.9068]
[1645155153703,1.5025603,94.452,94.43,15.9068]
[1645155154003,1.5025603,94.451,94.43,15.9068]
[1645155155202,1.5025603,94.451,94.43,15.8868]
[1645155155603,1.5025603,94.451,94.42,15.8877]
[1645155155804,1.5025603,94.451,94.421,5.293]
[1645155157016,1.5025603,94.45,94.421,5.293]
[1645155157509,1.5025603,94.451,94.421,5.293]
[1645155159523,1.5025603,94.452,94.421,5.293]
[1645155159717,1.946259,94.453,94.421,5.293]
[1645155160508,1.946259,94.453,94.421,5.313]
[1645155160720,1.5025603,94.452,94.421,5.313]
[1645155160908,1.946259,94.453,94.421,5.313]
[1645155161817,1.5025603,94.452,94.421,5.313]
[1645155162311,1.946259,94.453,94.421,5.313]
[1645155162733,1.5025603,94.452,94.421,5.313]
[1645155163218,1.5025603,94.452,94.43,15.8867]
[1645155163423,0.4436987,94.453,94.431,5.293]
[1645155163822,0.4436987,94.453,94.421,0.02]
[1645155163823,0.4436987,94.453,94.422,5.293]
[1645155164415,0.4436987,94.453,94.44,15.8839]
[1645155165628,9.87e-05,94.453,94.44,15.8839]
[1645155165817,9.87e-05,94.453,94.441,5.293]
[1645155170645,9.87e-05,94.453,94.441,5.313]
[1645155171023,46.34489094,94.474,94.441,5.313]
[1645155171235,1.5025603,94.476,94.45,15.8827]
[1645155171639,1.5025603,94.477,94.45,15.8827]
[1645155173126,49.79295263,94.478,94.45,15.8827]
[1645155173732,1.5025603,94.478,94.45,15.8827]
[1645155174825,42.68186498,94.478,94.45,15.8827]
[1645155175028,1.5025603,94.477,94.45,15.8827]
[1645155175440,42.68186498,94.478,94.45,15.8827]
[1645155175825,1.5025603,94.478,94.45,15.9027]
[1645155176627,1.5025603,94.477,94.45,15.9027]
[1645155176828,1.5025603,94.477,94.451,106.3]
[1645155177032,1.5025603,94.484,94.46,15.8792]
[1645155177228,1.5025603,94.492,94.461,5.292]
[1645155177680,1.9356169,94.496,94.461,5.292]
[1645155177829,0.4330566,94.496,94.453,5.292]
[1645155178029,0.4330566,94.496,94.47,15.8783]
[1645155178733,0.4330566,94.496,94.471,23.9245]
[1645155183331,0.4330566,94.496,94.472,5.292]
[1645155183934,0.4330566,94.496,94.46,15.8812]
[1645155184133,0.4330566,94.496,94.461,22.862]
[1645155185532,0.4330566,94.496,94.462,5.292]
[1645155187033,0.4330566,94.496,94.462,111.592]
[1645155187232,0.4330566,94.496,94.47,15.8798]
[1645155188450,0.4330566,94.496,94.471,5.292]
[1645155189240,0.4330566,94.496,94.472,22.6156]
[1645155189485,0.4330566,94.496,94.473,5.292]
[1645155204472,0.4330566,94.496,94.475,0.02860905]
[1645155204873,0.4330566,94.496,94.476,3.03219997]
[1645155209716,0.4330566,94.496,94.478,0.02856907]
[1645155210887,0.4330566,94.496,94.481,106.3]
[1645155211076,0.4330566,94.496,94.482,5.291]
[1645155211279,0.4330566,94.496,94.483,24.7214]
[1645155211477,0.4330566,94.496,94.484,5.291]
[1645155211982,0.4330566,94.496,94.483,24.7214]
[1645155212778,0.4330566,94.496,94.484,5.291]